bitfinex/quotes_BTCUSD_20240712
["timestamp","ask_amount","ask_price","bid_price","bid_amount"]
[1720742401033,3.81748661,57458.0,57457.0,0.147713]
[1720742401229,3.68693551,57458.0,57457.0,0.147713]
[1720742401678,3.68593551,57458.0,57457.0,0.147713]
[1720742402665,3.68693551,57458.0,57457.0,0.147713]
[1720742402867,3.68693551,57458.0,57453.0,0.1443]
[1720742403067,0.33337153,57454.0,57453.0,0.1443]
[1720742403246,0.41471611,57454.0,57453.0,0.1443]
[1720742403452,0.41471575,57454.0,57453.0,0.1443]
[1720742403671,0.36061917,57454.0,57453.0,0.1443]
[1720742403872,0.20151635,57454.0,57453.0,0.1443]
[1720742404111,0.35938242,57454.0,57453.0,0.1443]
[1720742404322,0.22923312,57454.0,57453.0,0.1443]
[1720742404528,0.43203312,57454.0,57453.0,0.1443]
[1720742405094,0.43203312,57454.0,57453.0,0.1483]
[1720742405568,0.43203312,57454.0,57453.0,0.1493]
[1720742405890,0.43203312,57454.0,57453.0,0.1443]
[1720742406350,0.27416705,57454.0,57453.0,0.1473]
[1720742406552,0.20193695,57454.0,57453.0,0.1473]
[1720742406781,0.01701348,57454.0,57453.0,0.1473]
[1720742406981,0.02786248,57454.0,57453.0,0.1473]
[1720742407328,0.02786229,57454.0,57453.0,0.1473]
[1720742407706,0.02786229,57454.0,57453.0,0.5106451]
[1720742407941,0.01084881,57454.0,57453.0,0.1513]
[1720742408117,0.01084881,57457.0,57453.0,0.1461]
[1720742408359,0.01084881,57456.0,57453.0,0.1421]
[1720742408568,0.01084881,57455.0,57454.0,0.00306353]
[1720742408949,0.01084881,57455.0,57454.0,0.06366353]
[1720742409149,0.01084881,57455.0,57454.0,0.0828]
[1720742409673,0.01084881,57457.0,57455.0,0.0613]
[1720742409789,0.01084791,57456.0,57455.0,0.0613]
[1720742410234,0.02724804,57456.0,57455.0,0.0613]
[1720742410441,0.03809648,57456.0,57455.0,0.0613]
[1720742411661,0.03809648,57456.0,57455.0,0.1435]
[1720742411863,0.01084822,57456.0,57455.0,0.1435]
[1720742412067,3.60459093,57458.0,57457.0,0.25240205]
[1720742412265,3.61543853,57458.0,57457.0,0.62263075]
[1720742413408,3.60459093,57458.0,57457.0,0.62663075]
[1720742413604,3.61543828,57458.0,57457.0,0.62663075]
[1720742413826,3.61543828,57458.0,57457.0,0.64963075]
[1720742413827,3.30479093,57458.0,57457.0,0.64963075]
[1720742414010,3.30479093,57458.0,57457.0,0.65269428]
[1720742414213,3.30479093,57458.0,57457.0,0.79380863]
[1720742414415,3.30479093,57458.0,57457.0,0.73380863]
[1720742414818,3.30479093,57458.0,57457.0,0.79580863]
[1720742415238,3.30479093,57458.0,57457.0,0.79380863]
[1720742415669,3.30479093,57458.0,57457.0,1.00780863]
[1720742415793,3.15489093,57458.0,57457.0,1.61180863]
[1720742415994,3.15489093,57458.0,57457.0,1.60780863]
[1720742416193,3.15489093,57458.0,57457.0,1.59380863]
[1720742416408,3.15489093,57458.0,57457.0,1.80780863]
[1720742416615,3.15489093,57458.0,57457.0,1.8047451]
[1720742417507,3.15489093,57458.0,57457.0,1.6047451]
[1720742417870,3.15489093,57458.0,57457.0,1.60780863]
[1720742418396,3.15489093,57458.0,57457.0,1.1047451]
[1720742418571,3.15489093,57458.0,57457.0,1.12180863]
[1720742418937,3.15489093,57458.0,57457.0,0.93669428]
[1720742419142,3.15489093,57458.0,57457.0,0.73669428]
[1720742419343,3.15489093,57458.0,57457.0,0.93363075]
[1720742419763,3.15489093,57458.0,57457.0,1.0187451]
[1720742419941,3.15489093,57458.0,57457.0,1.02101519]
[1720742420158,3.15489093,57458.0,57457.0,1.0187451]
[1720742420390,3.15489093,57458.0,57457.0,0.91963075]
[1720742420845,3.15489093,57458.0,57457.0,0.93363075]
[1720742421449,3.15489093,57458.0,57457.0,0.9587451]
[1720742421662,3.15489093,57458.0,57457.0,1.3047451]
[1720742422082,3.15489093,57458.0,57457.0,1.3187451]
[1720742422557,3.15489093,57458.0,57457.0,1.3047451]
[1720742422949,3.15489093,57458.0,57457.0,1.3187451]
[1720742423168,3.15489093,57458.0,57457.0,1.3047451]
[1720742423503,3.15489093,57458.0,57457.0,1.3187451]
[1720742426073,3.00499093,57458.0,57457.0,1.3047451]
[1720742426285,2.89959093,57458.0,57457.0,1.2315581]
[1720742426616,2.89959093,57458.0,57457.0,1.1973581]
[1720742426617,2.79539093,57458.0,57457.0,1.1973581]
[1720742426751,2.79539093,57458.0,57457.0,1.34192183]
[1720742426948,2.79539093,57458.0,57457.0,1.37977607]
[1720742427159,2.79539093,57458.0,57457.0,1.32792183]
[1720742427354,2.79539093,57458.0,57457.0,1.19416402]
[1720742427783,2.79539093,57458.0,57457.0,1.18016402]
[1720742428197,2.79539093,57458.0,57457.0,1.19416402]
[1720742428392,2.79539093,57458.0,57457.0,1.18016402]
[1720742428837,2.79539093,57458.0,57457.0,1.19416402]
[1720742429469,2.79539093,57458.0,57457.0,1.18016402]
[1720742430717,2.79539093,57458.0,57457.0,1.19416402]
[1720742430932,2.79539093,57458.0,57457.0,3.10863702]
[1720742431060,2.79539093,57458.0,57457.0,3.29213702]
[1720742432177,2.79539093,57458.0,57457.0,3.27813702]
[1720742432587,2.79539093,57458.0,57457.0,3.43670326]
[1720742432786,2.79539093,57458.0,57457.0,3.42270326]
[1720742433253,2.79539093,57458.0,57457.0,3.29213702]
[1720742433478,2.79539093,57458.0,57457.0,3.43670326]
[1720742433651,2.79539093,57458.0,57457.0,3.43670376]
[1720742435281,2.79539093,57458.0,57457.0,3.48848756]
[1720742435706,2.79539093,57458.0,57457.0,3.43670376]
[1720742435826,2.79539093,57458.0,57457.0,3.42270376]
[1720742436222,2.79539093,57458.0,57457.0,3.31302702]
[1720742436437,2.79539093,57458.0,57457.0,3.28300369]
[1720742436640,2.79539093,57458.0,57457.0,3.29700369]
[1720742436847,2.79539093,57458.0,57457.0,3.13843667]
[1720742437299,2.79539093,57458.0,57457.0,3.28301283]
[1720742437537,2.79539093,57458.0,57457.0,3.29701283]
[1720742437886,2.79539093,57458.0,57457.0,3.15243667]
[1720742438295,2.79539093,57458.0,57457.0,2.46143667]
[1720742438494,2.79539093,57458.0,57457.0,3.16143667]
[1720742438926,2.79539093,57458.0,57457.0,2.44743667]
[1720742439248,2.79539093,57458.0,57457.0,2.94743667]
[1720742439451,2.79539093,57458.0,57457.0,2.92533667]
[1720742439753,2.79539093,57458.0,57457.0,1.55894967]
[1720742439934,2.79539093,57458.0,57457.0,1.58694967]
[1720742440452,2.79539093,57458.0,57457.0,1.57294967]
[1720742440890,2.79539093,57458.0,57457.0,1.58694967]
[1720742441022,2.79539093,57458.0,57457.0,1.73153241]
[1720742443305,2.79539093,57458.0,57457.0,1.7315287]
[1720742443710,2.79539093,57458.0,57457.0,1.58694967]
[1720742443914,2.79539093,57458.0,57457.0,1.73152855]
[1720742446357,2.79539093,57458.0,57457.0,1.58694967]
[1720742446558,2.79539093,57458.0,57457.0,1.73152958]
[1720742448476,2.79539093,57458.0,57457.0,0.80852958]
[1720742448690,2.79539093,57458.0,57457.0,1.50852958]
[1720742449051,2.79539093,57458.0,57457.0,1.40852958]
[1720742449249,2.79539093,57458.0,57457.0,1.47825358]
[1720742449454,2.79539093,57458.0,57457.0,1.57825358]
[1720742449705,2.79539093,57458.0,57457.0,0.87826294]
[1720742450030,2.79539093,57458.0,57457.0,1.77826182]
[1720742450228,2.79539093,57458.0,57457.0,2.08917617]
[1720742450229,2.5463829,57458.0,57457.0,2.08917617]
[1720742450731,2.50128517,57458.0,57457.0,2.6587162]
[1720742450931,2.50128517,57458.0,57457.0,2.83940374]
[1720742451278,2.50128517,57458.0,57457.0,2.99465824]
[1720742451699,2.50128517,57458.0,57457.0,2.96665824]
[1720742452125,2.50128517,57458.0,57457.0,2.82540374]
[1720742452953,2.50128517,57458.0,57457.0,2.29477556]
[1720742453154,2.50128517,57458.0,57457.0,2.82530118]
[1720742453354,2.50128517,57458.0,57457.0,2.83930118]
[1720742453555,2.50128517,57458.0,57457.0,2.83930212]
[1720742453737,2.50128517,57458.0,57457.0,2.65861458]
[1720742453935,2.50128517,57458.0,57457.0,2.83929914]
[1720742454578,2.50128517,57458.0,57457.0,2.83930095]
[1720742454778,2.50128517,57458.0,57457.0,2.69475508]
[1720742455626,2.50128517,57458.0,57457.0,2.45331925]
[1720742455827,2.34615645,57458.0,57457.0,2.83930055]
[1720742456065,0.91021645,57458.0,57457.0,2.83930055]
[1720742456267,0.91021645,57458.0,57457.0,2.84236408]
[1720742456476,0.91021645,57458.0,57457.0,2.45638278]
[1720742456679,0.91021645,57458.0,57457.0,3.07183434]
[1720742457026,0.65519551,57458.0,57457.0,3.77183434]
[1720742457226,0.65519551,57458.0,57457.0,4.08269636]
[1720742457227,0.63994939,57458.0,57457.0,4.08269636]
[1720742457474,0.63994939,57458.0,57457.0,4.07789243]
[1720742458099,0.63994939,57458.0,57457.0,4.07789768]
[1720742458475,0.63994939,57458.0,57457.0,3.37789768]
[1720742460814,0.63994939,57458.0,57457.0,3.37789129]
[1720742461153,0.63994939,57458.0,57457.0,3.37789613]
[1720742461283,0.63994939,57458.0,57457.0,2.49721796]
[1720742461492,0.63994939,57458.0,57457.0,3.42696364]
[1720742461699,0.63994939,57458.0,57457.0,2.72696364]
[1720742461896,0.63994939,57458.0,57457.0,3.42696364]
[1720742462349,0.63994939,57458.0,57457.0,2.67767366]
[1720742462503,0.63994939,57458.0,57457.0,2.65685968]
[1720742463127,0.63994939,57458.0,57457.0,2.67767564]
[1720742463322,0.63994939,57458.0,57457.0,2.65685968]
[1720742463984,0.63994939,57458.0,57457.0,2.51231782]
[1720742464194,0.63994939,57458.0,57457.0,2.65687936]
[1720742464368,0.63994939,57458.0,57457.0,2.69851367]
[1720742464573,0.63994939,57458.0,57457.0,2.29171374]
[1720742464771,0.63994939,57458.0,57457.0,2.69851889]
[1720742465169,0.63994939,57458.0,57457.0,2.67770147]
[1720742465356,0.60865139,57458.0,57457.0,2.69851889]
[1720742465557,0.55015139,57458.0,57457.0,2.85838069]
[1720742466145,0.55015139,57458.0,57457.0,2.87918726]
[1720742466587,0.49242139,57458.0,57457.0,2.87918726]
[1720742466807,0.21540791,57458.0,57457.0,2.69850804]
[1720742467004,0.00083,57470.0,57469.0,1.26800205]
[1720742467343,0.00083,57470.0,57469.0,1.72297206]
[1720742467547,0.00083,57470.0,57469.0,2.21261404]
[1720742467795,0.00083,57470.0,57469.0,2.108939]
[1720742468005,0.00083,57470.0,57469.0,2.327329]
[1720742468433,0.00083,57470.0,57469.0,2.341329]
[1720742468630,0.00083,57470.0,57469.0,2.157829]
[1720742469080,0.13683,57470.0,57469.0,2.157829]
[1720742469298,0.13683,57470.0,57469.0,2.26144107]
[1720742469467,0.00083,57470.0,57469.0,2.24954361]
[1720742469730,0.00083,57470.0,57469.0,2.23554361]
[1720742469956,0.00083,57470.0,57469.0,2.24744107]
[1720742470162,0.00083,57470.0,57469.0,2.157829]
[1720742470617,0.00083,57470.0,57469.0,2.01327925]
[1720742470822,0.00083,57470.0,57469.0,2.17181741]
[1720742470998,0.00083,57470.0,57469.0,2.23552785]
[1720742471226,0.00083,57470.0,57469.0,2.24952785]
[1720742471640,0.00083,57470.0,57469.0,2.17181741]
[1720742471799,0.00083,57470.0,57469.0,2.15781741]
[1720742471998,0.00083,57470.0,57469.0,1.95781741]
[1720742472198,0.00083,57470.0,57469.0,2.20065122]
[1720742472401,0.00083,57470.0,57469.0,2.10892741]
[1720742472604,0.00083,57470.0,57469.0,2.18664337]
[1720742472827,0.00083,57470.0,57469.0,2.20064337]
[1720742473005,0.00083,57470.0,57469.0,2.22153337]
[1720742473437,0.00083,57470.0,57469.0,2.24953337]
[1720742473774,0.00083,57470.0,57469.0,1.64132075]
[1720742473991,0.00083,57470.0,57469.0,2.24952614]
[1720742474340,0.00083,57470.0,57469.0,1.86356859]
[1720742474939,0.00083,57470.0,57469.0,1.87631603]
[1720742475254,0.00083,57470.0,57469.0,2.18456751]
[1720742475557,0.00083,57470.0,57469.0,2.49757977]
[1720742475752,0.00083,57470.0,57469.0,2.36806751]
[1720742475959,0.00083,57470.0,57469.0,2.46989848]
[1720742476161,0.00083,57470.0,57469.0,2.36632711]
[1720742476742,0.00083,57470.0,57469.0,2.46988527]
[1720742476920,0.00083,57470.0,57469.0,1.98036086]
[1720742477116,0.0621,57479.0,57478.0,1.26626165]
[1720742477322,3.15180795,57480.0,57479.0,0.56626165]
[1720742477803,3.15180795,57480.0,57479.0,1.06612072]
[1720742477973,3.15180795,57480.0,57479.0,1.08912072]
[1720742478582,3.15180795,57480.0,57479.0,1.1408534]
[1720742478730,3.15180795,57480.0,57479.0,1.57854763]
[1720742478931,3.15180795,57480.0,57479.0,1.47499897]
[1720742479198,3.15180795,57480.0,57479.0,1.60444037]
[1720742479491,3.15180795,57480.0,57479.0,1.59239637]
[1720742479847,3.15180795,57480.0,57479.0,1.57839637]
[1720742480189,3.15180795,57480.0,57479.0,1.59239637]
[1720742480418,3.15180795,57480.0,57479.0,1.44785285]
[1720742480551,3.15180795,57480.0,57479.0,1.59235535]
[1720742480752,3.15180795,57480.0,57479.0,1.4889705]
[1720742481144,3.15180795,57480.0,57479.0,1.58051464]
[1720742481502,3.15180795,57480.0,57479.0,1.16880087]
[1720742482029,3.15180795,57480.0,57479.0,1.86880087]
[1720742482188,3.15180795,57480.0,57479.0,1.8171072]
[1720742482383,3.12680795,57480.0,57479.0,1.1171072]
[1720742482601,3.12680795,57480.0,57479.0,1.8171072]
[1720742482992,3.12680795,57480.0,57479.0,1.1171072]
[1720742482993,3.26440795,57480.0,57479.0,1.1171072]
[1720742483196,3.26440795,57480.0,57479.0,1.8171072]
[1720742483418,3.26440795,57480.0,57479.0,1.1171072]
[1720742483638,3.26440795,57480.0,57479.0,1.81712042]
[1720742483845,3.26440795,57480.0,57479.0,0.91712042]
[1720742484056,3.26440795,57480.0,57479.0,1.6726047]
[1720742485793,3.26440795,57480.0,57479.0,1.68551061]
[1720742486425,3.26440795,57480.0,57479.0,1.83003195]
[1720742486824,3.26440795,57480.0,57479.0,1.83002985]
[1720742487077,3.26440795,57480.0,57479.0,1.83002969]
[1720742489653,3.26440795,57480.0,57479.0,1.89972369]
[1720742490615,3.26440795,57480.0,57479.0,1.79972462]
[1720742490785,3.26440795,57480.0,57479.0,1.59972462]
[1720742491009,3.26440795,57480.0,57479.0,0.69520461]
[1720742491139,3.26440795,57480.0,57479.0,0.59718435]
[1720742491545,3.26440795,57480.0,57479.0,0.57418435]
[1720742491888,3.26440795,57480.0,57479.0,0.37418435]
[1720742492126,3.26440795,57480.0,57479.0,0.57418435]
[1720742492334,3.26440795,57480.0,57479.0,0.37418435]
[1720742492528,3.26440795,57480.0,57479.0,0.56018435]
[1720742492685,3.26440795,57480.0,57479.0,0.36018435]
[1720742492900,3.26440795,57480.0,57479.0,0.57418435]
[1720742493099,3.26440795,57480.0,57479.0,0.59718435]
[1720742493302,3.26440795,57480.0,57479.0,0.56018435]
[1720742493509,3.26440795,57480.0,57479.0,0.3706227]
[1720742493737,3.26440795,57480.0,57479.0,0.27688435]
[1720742493941,3.26440795,57480.0,57479.0,0.49088435]
[1720742494157,3.26440795,57480.0,57479.0,0.48874445]
[1720742494344,3.26440795,57480.0,57479.0,0.46074445]
[1720742494708,3.26440795,57480.0,57479.0,0.47474445]
[1720742494910,3.26440795,57480.0,57479.0,0.27474445]
[1720742495139,3.26440795,57480.0,57479.0,0.47474445]
[1720742495375,3.26440795,57480.0,57479.0,0.46074445]
[1720742495795,3.26440795,57480.0,57479.0,0.3684828]
[1720742496207,3.26440795,57480.0,57479.0,0.3544828]
[1720742496570,3.26440795,57480.0,57479.0,0.47474445]
[1720742496953,3.26440795,57480.0,57479.0,0.48874445]
[1720742497745,3.26440795,57480.0,57479.0,0.1158828]
[1720742498574,3.26440795,57480.0,57479.0,0.0461888]
[1720742499543,3.26440795,57480.0,57479.0,0.028]
[1720742500264,3.26614835,57480.0,57479.0,0.028]
[1720742500502,0.0017404,57474.0,57472.0,0.2]
[1720742500715,3.13765097,57480.0,57464.0,0.4771]
[1720742500716,0.3479,57472.0,57467.0,0.2]
[1720742500932,0.3479,57472.0,57465.0,0.2]
[1720742500933,0.0817,57468.0,57465.0,0.2]
[1720742501133,0.0799,57466.0,57464.0,0.6473287]
[1720742501252,0.01512872,57472.0,57465.0,0.2]
[1720742501638,0.078169,57479.0,57464.0,0.4771]
[1720742501639,0.2028,57467.0,57464.0,0.4771]
[1720742501815,0.0615,57466.0,57464.0,0.4771]
[1720742503917,0.0615,57466.0,57465.0,0.012]
[1720742504317,0.0615,57466.0,57464.0,0.4771]
[1720742504318,0.0764,57465.0,57464.0,0.4771]
[1720742504544,0.1374,57465.0,57464.0,0.4771]
[1720742505386,0.1374,57465.0,57464.0,0.4891]
[1720742506004,0.1374,57465.0,57464.0,0.012]
[1720742506166,0.1226822,57465.0,57464.0,0.023]
[1720742506766,0.1226822,57465.0,57464.0,0.011]
[1720742507140,0.1236822,57465.0,57464.0,0.011]
[1720742508060,0.1236822,57465.0,57464.0,0.11900205]
[1720742508277,0.1236822,57465.0,57464.0,0.28923075]
[1720742508880,0.002,57465.0,57464.0,0.28923075]
[1720742509219,0.0825,57465.0,57464.0,0.28923075]
[1720742511423,0.0825,57465.0,57464.0,0.48923075]
[1720742511870,0.0825,57465.0,57464.0,0.3812287]
[1720742512070,0.0825,57465.0,57464.0,0.48923075]
[1720742518324,0.002,57465.0,57464.0,0.48923075]
[1720742521132,0.002,57465.0,57464.0,0.62774375]
[1720742521449,0.00283,57465.0,57464.0,0.75380728]
[1720742521853,0.00283,57465.0,57464.0,0.95380728]
[1720742522061,0.00083,57465.0,57464.0,0.94140728]
[1720742522274,0.00183,57465.0,57464.0,0.75340728]
[1720742522626,0.00183,57465.0,57464.0,0.31580728]
[1720742522828,0.00083,57465.0,57464.0,0.50422362]
[1720742523037,0.00283,57465.0,57464.0,0.59228715]
[1720742523272,0.00283,57465.0,57464.0,0.58880728]
[1720742523695,0.00283,57465.0,57464.0,0.38880728]
[1720742523892,0.00283,57465.0,57464.0,1.08574375]
[1720742524452,0.00183,57465.0,57464.0,1.07274375]
[1720742524653,0.00083,57465.0,57464.0,1.06074375]
[1720742524860,0.00083,57465.0,57464.0,1.07474375]
[1720742525421,0.00083,57465.0,57464.0,1.08874375]
[1720742525844,0.00083,57465.0,57464.0,1.07474375]
[1720742526244,0.00083,57465.0,57464.0,1.08874375]
[1720742528372,0.00083,57465.0,57464.0,0.58874375]
[1720742529396,1e-06,57465.0,57464.0,1.20750978]
[1720742529607,3.15180795,57480.0,57479.0,1.02]
[1720742529782,3.15180795,57480.0,57479.0,1.57763075]
[1720742529991,3.15180795,57480.0,57479.0,1.84515383]
[1720742530362,3.15180795,57480.0,57479.0,1.70063075]
[1720742530953,3.15180795,57480.0,57479.0,1.16123075]
[1720742531153,3.15180795,57480.0,57479.0,1.26123075]
[1720742531890,3.15180795,57480.0,57479.0,1.27523075]
[1720742532312,3.15180795,57480.0,57479.0,1.26123075]
[1720742532556,3.15180795,57480.0,57479.0,1.27523075]
[1720742532764,3.15180795,57480.0,57479.0,1.28923075]
[1720742533173,3.15180795,57480.0,57479.0,1.27523075]
[1720742533656,3.15180795,57480.0,57479.0,1.26123075]
[1720742533867,3.15180795,57480.0,57479.0,1.27523075]
[1720742534287,3.15180795,57480.0,57479.0,1.01523075]
[1720742534500,3.21410795,57480.0,57479.0,0.51523075]
[1720742534708,3.21410795,57480.0,57479.0,0.49223075]
[1720742534924,3.21410795,57480.0,57479.0,0.50623075]
[1720742535134,3.29420795,57480.0,57479.0,1.72406575]
[1720742535935,3.29420795,57480.0,57479.0,1.51006575]
[1720742536169,3.29420795,57480.0,57479.0,1.71006575]
[1720742536383,3.29420795,57480.0,57479.0,1.2401107]
[1720742536595,3.29420795,57480.0,57479.0,0.2]
[1720742536777,3.29420795,57480.0,57479.0,0.49597805]
[1720742536929,3.29420795,57480.0,57479.0,0.85793105]
[1720742537564,3.29420795,57480.0,57479.0,0.84393105]
[1720742537912,3.21410795,57480.0,57479.0,1.71006575]
[1720742538321,3.21410795,57480.0,57479.0,1.73306575]
[1720742538604,3.15180795,57480.0,57479.0,2.22191875]
[1720742538912,3.15180795,57480.0,57479.0,2.20791875]
[1720742539143,3.15180795,57480.0,57479.0,2.70791875]
[1720742539345,3.15180795,57480.0,57479.0,2.82191875]
[1720742539551,3.15180795,57480.0,57479.0,1.80706575]
[1720742539748,3.15180795,57480.0,57479.0,2.3781801]
[1720742539957,3.15180795,57480.0,57479.0,2.8121331]
[1720742540159,3.15180795,57480.0,57479.0,2.9062331]
[1720742540360,3.15180795,57480.0,57479.0,2.9202331]
[1720742540658,3.15180795,57480.0,57479.0,2.8922331]
[1720742541075,3.15180795,57480.0,57479.0,2.0922331]
[1720742541277,3.15180795,57480.0,57479.0,2.7121331]
[1720742541278,3.15176661,57480.0,57479.0,2.7121331]
[1720742541534,3.15176661,57480.0,57479.0,1.57906575]
[1720742541737,3.15176661,57480.0,57479.0,2.27906575]
[1720742542168,2.91781566,57480.0,57479.0,2.62701875]
[1720742542383,2.91781566,57480.0,57479.0,2.64101875]
[1720742542565,2.91781566,57480.0,57479.0,2.95501875]
[1720742542709,2.91781566,57480.0,57479.0,3.20281875]
[1720742543093,2.91781566,57480.0,57479.0,3.55077175]
[1720742543294,2.91781566,57480.0,57479.0,3.56477175]
[1720742544114,2.91781566,57480.0,57479.0,3.22970999]
[1720742544789,2.91781566,57480.0,57479.0,3.02970999]
[1720742546161,2.91781566,57480.0,57479.0,2.96790999]
[1720742546738,2.91781566,57480.0,57479.0,3.16790999]
[1720742546915,2.91781566,57480.0,57479.0,2.96790999]
[1720742547116,2.91781566,57480.0,57479.0,2.76790999]
[1720742547325,2.91781566,57480.0,57479.0,2.36790999]
[1720742547678,2.91781566,57480.0,57479.0,2.86790999]
[1720742548080,2.91781566,57480.0,57479.0,2.16790999]
[1720742548282,2.91781566,57480.0,57479.0,2.86790999]
[1720742548482,2.91781566,57480.0,57479.0,2.16790999]
[1720742548697,2.91781566,57480.0,57479.0,2.36790999]
[1720742548901,2.91781566,57480.0,57479.0,2.26790999]
[1720742550217,2.91781566,57480.0,57479.0,2.10790999]
[1720742550420,2.91781566,57480.0,57479.0,1.2681107]
[1720742550421,3.05671566,57480.0,57479.0,1.2681107]
[1720742550597,3.05671566,57480.0,57479.0,1.17611275]
[1720742551048,3.05671566,57480.0,57479.0,1.37611275]
[1720742551657,3.05671566,57480.0,57479.0,1.17611275]
[1720742551862,3.05671566,57480.0,57479.0,1.0681107]
[1720742552108,3.05671566,57480.0,57479.0,0.1982287]
[1720742552510,3.05671566,57480.0,57479.0,0.028]
[1720742552710,3.06755863,57480.0,57479.0,0.014]
[1720742553996,0.1433,57478.0,57472.0,0.2]
[1720742554197,0.0635,57475.0,57472.0,0.1702287]
[1720742554450,0.079,57472.0,57471.0,0.2]
[1720742554603,0.14,57472.0,57471.0,0.1702287]
[1720742554810,0.14,57472.0,57471.0,0.5442287]
[1720742556025,0.14,57472.0,57469.0,0.4771]
[1720742556237,0.2028,57473.0,57469.0,0.4771]
[1720742556238,0.01084486,57471.0,57469.0,0.4771]
[1720742556447,0.2028,57473.0,57469.0,0.4771]
[1720742556448,0.14814486,57470.0,57469.0,0.4771]
[1720742557542,0.11718716,57473.0,57469.0,0.4911]
[1720742557734,0.11718716,57473.0,57469.0,0.4771]
[1720742558462,0.11718716,57473.0,57469.0,0.5051]
[1720742558697,0.11718716,57473.0,57469.0,0.4911]
[1720742559463,0.11718716,57473.0,57469.0,0.014]
[1720742560251,0.11718716,57473.0,57465.0,0.000913]
[1720742560456,0.0666,57471.0,57469.0,0.011]
[1720742560655,0.0666,57471.0,57469.0,0.025]
[1720742561021,0.0666,57471.0,57469.0,0.011]
[1720742561200,0.0666,57471.0,57465.0,0.000913]
[1720742561353,0.0829,57470.0,57469.0,0.026]
[1720742561698,0.0829,57470.0,57469.0,0.012]
[1720742561699,0.1457,57470.0,57469.0,0.012]
[1720742562116,0.1457,57470.0,57469.0,0.026]
[1720742562259,0.1457,57470.0,57469.0,0.012]
[1720742563076,0.0829,57470.0,57465.0,0.000913]
[1720742563260,0.0629,57469.0,57465.0,0.000913]
[1720742563702,0.0062176,57473.0,57465.0,0.000913]
[1720742563917,0.001,57470.0,57469.0,0.014]
[1720742564282,0.0062176,57473.0,57465.0,0.000913]
[1720742564484,0.0062176,57473.0,57465.0,0.014913]
[1720742565115,0.001,57469.0,57465.0,0.014913]
[1720742565516,0.0062176,57473.0,57465.0,0.000913]
[1720742565867,0.2028,57467.0,57465.0,0.014913]
[1720742566743,0.142,57466.0,57465.0,0.014913]
[1720742567283,0.142,57466.0,57465.0,0.000913]
[1720742567691,0.142,57466.0,57465.0,0.014913]
[1720742568124,0.142,57466.0,57465.0,0.000913]
[1720742568528,0.143,57466.0,57465.0,0.014913]
[1720742568769,0.143,57466.0,57465.0,0.028913]
[1720742568770,0.77589339,57466.0,57465.0,0.028913]
[1720742569168,1.32392439,57466.0,57465.0,0.028913]
[1720742569509,2.04218409,57466.0,57465.0,0.028913]
[1720742569920,1.69415309,57466.0,57465.0,0.028913]
[1720742570272,1.7069856,57466.0,57465.0,0.028913]
[1720742570489,1.7069856,57466.0,57465.0,0.014913]
[1720742570678,1.7069856,57466.0,57465.0,0.000913]
[1720742570679,1.7059856,57466.0,57465.0,0.000913]
[1720742570897,1.7059856,57466.0,57465.0,0.014913]
[1720742571155,1.7059856,57466.0,57465.0,0.028913]
[1720742571156,1.73423631,57466.0,57465.0,0.028913]
[1720742571510,1.7059856,57466.0,57465.0,0.000913]
[1720742571852,1.6059856,57466.0,57465.0,0.003913]
[1720742572049,1.59513821,57466.0,57465.0,0.003913]
[1720742572233,1.70598718,57466.0,57465.0,0.003913]
[1720742572430,1.70698718,57466.0,57465.0,0.009913]
[1720742572721,1.70698712,57466.0,57465.0,0.009913]
[1720742575503,1.70698732,57466.0,57465.0,0.009913]
[1720742576815,1.70698744,57466.0,57465.0,0.009913]
[1720742577273,1.50698744,57466.0,57465.0,0.009913]
[1720742577696,0.26668174,57466.0,57465.0,0.009913]
[1720742577974,0.36668174,57466.0,57465.0,0.009913]
[1720742578187,0.26668174,57466.0,57465.0,0.009913]
[1720742578937,0.2666812,57466.0,57465.0,0.009913]
[1720742580256,0.3666812,57466.0,57465.0,0.009913]
[1720742581039,0.2666812,57466.0,57465.0,0.009913]
[1720742581901,0.25583251,57466.0,57465.0,0.009913]
[1720742582100,0.2666811,57466.0,57465.0,0.009913]
[1720742584685,0.25583251,57466.0,57465.0,0.009913]
[1720742584874,0.26668039,57466.0,57465.0,0.009913]
[1720742585849,0.18518039,57466.0,57465.0,0.009913]
[1720742586187,0.12468039,57466.0,57465.0,0.009913]
[1720742587177,0.53100909,57466.0,57465.0,0.009913]
[1720742587514,0.75825646,57466.0,57465.0,0.009913]
[1720742588059,0.92142358,57466.0,57465.0,0.009913]
[1720742588271,0.93227166,57466.0,57465.0,0.009913]
[1720742588689,0.73227166,57466.0,57465.0,0.009913]
[1720742588902,0.93227166,57466.0,57465.0,0.009913]
[1720742589724,0.73227166,57466.0,57465.0,0.009913]
[1720742589919,0.55825666,57466.0,57465.0,0.009913]
[1720742590298,0.45825666,57466.0,57465.0,0.009913]
[1720742591554,0.45825654,57466.0,57465.0,0.009913]
[1720742591754,0.55825654,57466.0,57465.0,0.009913]
[1720742592623,0.75825654,57466.0,57465.0,0.009913]
[1720742592824,0.55825654,57466.0,57465.0,0.009913]
[1720742593155,0.93227154,57466.0,57465.0,0.009913]
[1720742593345,0.73227154,57466.0,57465.0,0.009913]
[1720742593708,0.93227154,57466.0,57465.0,0.009913]
[1720742593901,0.64821033,57466.0,57465.0,0.009913]
[1720742594552,1.00900395,57466.0,57465.0,0.009913]
[1720742594753,0.99815599,57466.0,57465.0,0.009913]
[1720742594982,0.21125804,57466.0,57465.0,0.009913]
[1720742595199,0.11125804,57466.0,57465.0,0.009913]
[1720742595809,0.28527304,57466.0,57465.0,0.009913]
[1720742595984,0.21125804,57466.0,57465.0,0.009913]
[1720742598117,0.20040999,57466.0,57465.0,0.009913]
[1720742598320,0.50465581,57466.0,57465.0,0.009913]
[1720742598599,1.65384957,57466.0,57465.0,0.009913]
[1720742598978,2.00188057,57466.0,57465.0,0.009913]
[1720742599178,2.05395729,57466.0,57465.0,0.009913]
[1720742599379,2.00188057,57466.0,57465.0,0.009913]
[1720742599559,2.05395729,57466.0,57465.0,0.009913]
[1720742600307,2.00188057,57466.0,57465.0,0.009913]
[1720742600547,2.0540154,57466.0,57465.0,0.009913]
[1720742600729,2.00188057,57466.0,57465.0,0.009913]
[1720742601297,2.07999565,57466.0,57465.0,0.009913]
[1720742601546,2.00258094,57466.0,57465.0,0.009913]
[1720742602243,2.10338202,57466.0,57465.0,0.009913]
[1720742602613,2.10340413,57466.0,57465.0,0.009913]
[1720742602787,1.170092,57465.0,57464.0,0.000913]
[1720742603009,1.41936387,57465.0,57464.0,0.000913]
[1720742603157,1.315042,57465.0,57464.0,0.000913]